[Event "ROU-ch Women 2018"]
[Site "Olanesti"]
[Date "2018.05.19"]
[Round "6"]
[White "Dragomirescu, Angela"]
[Black "Pancu, Aureliana-Eugenia"]
[Result "1-0"]
[ECO "D12"]
[WhiteElo "2272"]
[BlackElo "1852"]
[Annotator "NA"]
[PlyCount "113"]
[EventDate "2018.??.??"]
[EventType "swiss"]
[EventCountry "ROU"]
[SourceTitle "playchess.com"]
[Source "ChessBase"]
[SourceQuality "1"]
[TimeControl "40/5400+30:1800+30"]

1. d4 {[%emt 0:00:00]} d5 {[%emt 0:00:09]} 2. c4 {[%emt 0:00:33]} c6 {[%emt 0:00:15]} 3. Nf3 {[%emt 0:01:03]} Nf6 {[%emt 0:00:17]} 4. e3 {[%emt 0:01:41]} Bf5 {[%emt 0:02:44]} 5. Nc3 {[%emt 0:00:17]} Nbd7 {[%emt 0:02:08]} 6. Be2 {[%emt 0:15:11]} Ne4 {[%emt 0:08:26]} 7. cxd5 {[%emt 0:03:44]} Nxc3 {[%emt 0:00:13]} 8. bxc3 {[%emt 0:00:05]} cxd5 {[%emt 0:00:17]} 9. Qb3 {[%emt 0:00:42]} Qc7 {[%emt 0:04:32]} 10. Bd2 {[%emt 0:07:35]} e6 {[%emt 0:06:53]} 11. c4 {[%emt 0:00:20]} Bd6 {[%emt 0:06:55]} 12. cxd5 {[%emt 0:02:34]} exd5 {[%emt 0:00:29]} 13. Qxd5 {[%emt 0:02:20]} Be6 {[%emt 0:00:34]} 14. Qa5 {[%emt 0:02:34]} Qxa5 {[%emt 0:06:06]} 15. Bxa5 {[%emt 0:00:20]} b6 {[%emt 0:00:22]} 16. Bd2 {[%emt 0:01:26]} Rc8 {[%emt 0:00:27]} 17. Bd3 {[%emt 0:01:23]} Ke7 {[%emt 0:00:44]} 18. Ke2 {[%emt 0:01:06]} Bc4 {[%emt 0:00:39]} 19. Rhc1 {[%emt 0:00:43]} Bxd3+ {[%emt 0:12:51]} 20. Kxd3 {[%emt 0:00:13]} Ba3 {[%emt 0:00:05]} 21. Rxc8 {[%emt 0:00:57]} Rxc8 {[%emt 0:00:14]} 22. Rb1 {[%emt 0:01:21]} a6 {[%emt 0:05:09]} 23. Rb3 {[%emt 0:02:14]} Bd6 {[%emt 0:00:42]} 24. e4 {[%emt 0:02:08]} f6 {[%emt 0:00:28]} 25. a4 {[%emt 0:00:16]} Rc7 {[%emt 0:06:01]} 26. Be3 {[%emt 0:06:59]} Rb7 {[%emt 0:03:16]} 27. Nd2 {[%emt 0:02:43]} b5 {[%emt 0:00:18]} 28. axb5 {[%emt 0:00:16]} axb5 {[%emt 0:00:08]} 29. f4 {[%emt 0:00:42]} Kd8 {[%emt 0:01:00]} 30. e5 {[%emt 0:01:07]} fxe5 {[%emt 0:00:22]} 31. fxe5 {[%emt 0:00:07]} Be7 {[%emt 0:00:22]} 32. Ne4 {[%emt 0:08:06]} Kc7 {[%emt 0:03:33]} 33. Nc3 {[%emt 0:01:16]} b4 {[%emt 0:01:50]} 34. Nd5+ {[%emt 0:00:08]} Kd8 {[%emt 0:00:03]} 35. Nxe7 {[%emt 0:00:11]} Kxe7 {[%emt 0:00:24]} 36. Bd2 {[%emt 0:00:50]} Ke6 {[%emt 0:00:55]} 37. Ke4 {[%emt 0:00:10]} Rb5 {[%emt 0:01:00]} 38. Rxb4 {[%emt 0:23:08]} Rxb4 {[%emt 0:00:12]} 39. Bxb4 {[%emt 0:00:01]} Nb6 {[%emt 0:00:27]} 40. Bf8 {[%emt 0:00:00]} g6 {[%emt 0:00:35]} 41. Kf4 {[%emt 0:00:30]} Kf7 {[%emt 0:03:11]} 42. Bc5 {[%emt 0:02:28]} Nd5+ {[%emt 0:00:15]} 43. Kg5 {[%emt 0:00:06]} h5 {[%emt 0:13:12]} 44. g3 {[%emt 0:13:11]} Nc7 {[%emt 0:02:39]} 45. Kh6 {[%emt 0:00:13]} Nd5 {[%emt 0:06:25]} 46. e6+ {[%emt 0:05:05]} Kxe6 {[%emt 0:00:29]} 47. Kxg6 {[%emt 0:00:01]} Nf6 {[%emt 0:01:10]} 48. Kg5 {[%emt 0:12:30]} Kf7 {[%emt 0:05:07]} 49. Ba3 {[%emt 0:00:36]} Ng4 {[%emt 0:00:30]} 50. h3 {[%emt 0:02:15]} Nf2 {[%emt 0:01:02]} 51. Kxh5 {[%emt 0:02:07]} Nxh3 {[%emt 0:01:40]} 52. Kg4 {[%emt 0:01:21]} Ng1 {[%emt 0:02:25]} 53. d5 {[%emt 0:00:58]} Ne2 {[%emt 0:00:33]} 54. Bb2 {[%emt 0:00:27]} Ke7 {[%emt 0:00:16]} 55. Be5 {[%emt 0:00:01]} Nc1 {[%emt 0:02:57]} 56. Kf5 {[%emt 0:00:08]} Nd3 {[%emt 0:01:07]} 57. g4 {[%emt 0:00:31]} 1-0

[Event "ROU-ch Women 2018"]
[Site "Olanesti"]
[Date "2018.05.19"]
[Round "6"]
[White "Cosman, Andreea-Marioara"]
[Black "Cosma, Elena-Luminita"]
[Result "1/2-1/2"]
[ECO "D45"]
[WhiteElo "2130"]
[BlackElo "2331"]
[Annotator "NA"]
[PlyCount "44"]
[EventDate "2018.??.??"]
[EventType "swiss"]
[EventCountry "ROU"]
[SourceTitle "playchess.com"]
[Source "ChessBase"]
[SourceQuality "1"]
[TimeControl "40/5400+30:1800+30"]

1. d4 {[%emt 0:00:00]} d5 {[%emt 0:00:07]} 2. c4 {[%emt 0:00:00]} e6 {[%emt 0:00:04]} 3. Nc3 {[%emt 0:00:00]} c6 {[%emt 0:00:06]} 4. e3 {[%emt 0:00:04]} Nf6 {[%emt 0:00:08]} 5. Nf3 {[%emt 0:00:17]} Nbd7 {[%emt 0:00:07]} 6. Qc2 {[%emt 0:00:45]} Bd6 {[%emt 0:00:07]} 7. Be2 {[%emt 0:00:41]} O-O {[%emt 0:00:43]} 8. b3 {[%emt 0:03:14]} b6 {[%emt 0:02:37]} 9. Bb2 {[%emt 0:02:48]} Bb7 {[%emt 0:00:43]} 10. O-O {[%emt 0:00:44]} Qe7 {[%emt 0:08:37]} 11. Rad1 {[%emt 0:04:43]} Rfe8 {[%emt 0:10:33]} 12. Rfe1 {[%emt 0:12:15]} Rac8 {[%emt 0:20:48]} 13. Qb1 {[%emt 0:19:11]} Bb4 {[%emt 0:10:19]} 14. Bd3 {[%emt 0:06:23]} c5 {[%emt 0:09:25]} 15. Ne5 {[%emt 0:12:06]} cxd4 {[%emt 0:02:35]} 16. exd4 {[%emt 0:02:23]} Nf8 {[%emt 0:03:44]} 17. Qc1 {[%emt 0:11:07]} N6d7 {[%emt 0:12:04]} 18. Nxd7 {[%emt 0:07:08]} Qxd7 {[%emt 0:00:14]} 19. Re3 {[%emt 0:00:05]} Red8 {[%emt 0:01:56]} 20. Rh3 {[%emt 0:03:05]} Be7 {[%emt 0:03:32]} 21. Qc2 {[%emt 0:02:14]} h6 {[%emt 0:00:36]} 22. Qe2 {[%emt 0:00:50]} Bf6 {[%emt 0:01:38]} 1/2-1/2

[Event "ROU-ch Women 2018"]
[Site "Olanesti"]
[Date "2018.05.19"]
[Round "6"]
[White "Ciocan, Maria-Alexandra"]
[Black "Coman, Emilia-Florentina"]
[Result "1-0"]
[ECO "C00"]
[WhiteElo "2021"]
[BlackElo "1869"]
[Annotator "NA"]
[PlyCount "77"]
[EventDate "2018.??.??"]
[EventType "swiss"]
[EventCountry "ROU"]
[SourceTitle "playchess.com"]
[Source "ChessBase"]
[SourceQuality "1"]
[TimeControl "40/5400+30:1800+30"]

1. e4 {[%emt 0:02:37]} e6 {[%emt 0:00:11]} 2. d4 {[%emt 0:00:05]} d5 {[%emt 0:00:04]} 3. Bd3 {[%emt 0:00:04]} Nc6 {[%emt 0:14:57]} 4. Nf3 {[%emt 0:00:38]} Nb4 {[%emt 0:02:10]} 5. Nc3 {[%emt 0:16:07]} Nxd3+ {[%emt 0:09:23]} 6. Qxd3 {[%emt 0:00:26]} Nf6 {[%emt 0:06:10]} 7. Bg5 {[%emt 0:06:12]} Be7 {[%emt 0:03:29]} 8. e5 {[%emt 0:01:06]} Nd7 {[%emt 0:00:17]} 9. h4 {[%emt 0:07:04]} a6 {[%emt 0:05:51]} 10. Ne2 {[%emt 0:02:48]} h6 {[%emt 0:02:01]} 11. Bxe7 {[%emt 0:00:19]} Qxe7 {[%emt 0:00:04]} 12. c3 {[%emt 0:01:40]} c5 {[%emt 0:03:12]} 13. Nd2 {[%emt 0:09:28]} O-O {[%emt 0:16:29]} 14. Nf4 {[%emt 0:04:13]} cxd4 {[%emt 0:07:15]} 15. cxd4 {[%emt 0:00:14]} Nb6 {[%emt 0:01:04]} 16. g4 {[%emt 0:05:38]} g6 {[%emt 0:00:33]} 17. O-O-O {[%emt 0:02:50]} Bd7 {[%emt 0:03:48]} 18. Kb1 {[%emt 0:00:32]} Rfc8 {[%emt 0:05:13]} 19. Qe3 {[%emt 0:20:11]} Kh7 {[%emt 0:05:12]} 20. Nh5 {[%emt 0:02:18]} gxh5 {[%emt 0:01:49]} 21. g5 {[%emt 0:03:43]} Rg8 {[%emt 0:02:58]} 22. Nf3 {[%emt 0:01:22]} Nc4 {[%emt 0:04:56]} 23. Qf4 {[%emt 0:02:54]} Qb4 {[%emt 0:01:04]} 24. b3 {[%emt 0:04:09]} Na3+ {[%emt 0:02:00]} 25. Kb2 {[%emt 0:00:09]} Nc4+ {[%emt 0:01:49]} 26. Kb1 {[%emt 0:00:12]} Rac8 {[%emt 0:00:49]} 27. Rc1 {[%emt 0:01:12]} Na3+ {[%emt 0:00:29]} 28. Kb2 {[%emt 0:00:29]} Nc4+ {[%emt 0:00:41]} 29. Ka1 {[%emt 0:00:27]} Be8 {[%emt 0:00:25]} 30. gxh6 {[%emt 0:01:13]} Rg6 {[%emt 0:00:27]} 31. bxc4 {[%emt 0:02:03]} Rxc4 {[%emt 0:00:33]} 32. Rxc4 {[%emt 0:00:23]} dxc4 {[%emt 0:00:28]} 33. Rc1 {[%emt 0:01:12]} c3 {[%emt 0:00:36]} 34. Rb1 {[%emt 0:00:07]} Qc4 {[%emt 0:00:26]} 35. Ng5+ {[%emt 0:02:49]} Kh8 {[%emt 0:00:33]} 36. Nxf7+ {[%emt 0:00:31]} Bxf7 {[%emt 0:00:31]} 37. Qxf7 {[%emt 0:00:08]} Rg8 {[%emt 0:00:30]} 38. Qf6+ {[%emt 0:00:07]} Kh7 {[%emt 0:00:06]} 39. Rxb7+ {[%emt 0:00:06]} 1-0

[Event "ROU-ch Women 2018"]
[Site "Olanesti"]
[Date "2018.05.19"]
[Round "6"]
[White "Panainte, Andreea-Bianca"]
[Black "Sandu, Mihaela"]
[Result "0-1"]
[ECO "B23"]
[WhiteElo "1894"]
[BlackElo "2258"]
[Annotator "NA"]
[PlyCount "44"]
[EventDate "2018.??.??"]
[EventType "swiss"]
[EventCountry "ROU"]
[SourceTitle "playchess.com"]
[Source "ChessBase"]
[SourceQuality "1"]
[TimeControl "40/5400+30:1800+30"]

1. e4 {[%emt 0:00:00]} c5 {[%emt 0:01:20]} 2. Nc3 {[%emt 0:00:00]} e6 {[%emt 0:00:05]} 3. f4 {[%emt 0:00:00]} d5 {[%emt 0:00:06]} 4. Bb5+ {[%emt 0:00:15]} Bd7 {[%emt 0:00:41]} 5. Bxd7+ {[%emt 0:00:40]} Qxd7 {[%emt 0:00:07]} 6. e5 {[%emt 0:00:27]} Nc6 {[%emt 0:01:30]} 7. Nf3 {[%emt 0:00:30]} Nge7 {[%emt 0:01:21]} 8. O-O {[%emt 0:01:11]} Nf5 {[%emt 0:02:09]} 9. g4 {[%emt 0:02:06]} Nfd4 {[%emt 0:00:58]} 10. Ne2 {[%emt 0:00:33]} Nxf3+ {[%emt 0:18:27]} 11. Rxf3 {[%emt 0:00:05]} g5 {[%emt 0:00:48]} 12. d4 {[%emt 0:06:42]} cxd4 {[%emt 0:01:23]} 13. Nxd4 {[%emt 0:00:59]} Bc5 {[%emt 0:00:13]} 14. c3 {[%emt 0:00:22]} O-O-O {[%emt 0:05:14]} 15. Be3 {[%emt 0:01:50]} gxf4 {[%emt 0:00:47]} 16. Bxf4 {[%emt 0:00:27]} Rhg8 {[%emt 0:04:24]} 17. Rg3 {[%emt 0:05:43]} f6 {[%emt 0:02:26]} 18. b4 {[%emt 0:06:01]} Bb6 {[%emt 0:01:10]} 19. Re3 {[%emt 0:21:21]} Qg7 {[%emt 0:06:18]} 20. h3 {[%emt 0:07:29]} fxe5 {[%emt 0:00:39]} 21. Nxe6 {[%emt 0:01:23]} Qf7 {[%emt 0:00:24]} 22. Nxd8 {[%emt 0:05:41]} Qxf4 {[%emt 0:01:09]} 0-1

[Event "ROU-ch Women 2018"]
[Site "Olanesti"]
[Date "2018.05.20"]
[Round "7"]
[White "Cosma, Elena-Luminita"]
[Black "Sandu, Mihaela"]
[Result "0-1"]
[ECO "A46"]
[WhiteElo "2331"]
[BlackElo "2258"]
[Annotator "NA"]
[PlyCount "125"]
[EventDate "2018.??.??"]
[EventType "swiss"]
[EventCountry "ROU"]
[SourceTitle "playchess.com"]
[Source "ChessBase"]
[SourceQuality "1"]
[TimeControl "40/5400+30:1800+30"]

1. d4 {[%emt 0:00:00]} Nf6 {[%emt 0:00:10]} 2. Nf3 {[%emt 0:00:00]} e6 {[%emt 0:01:04]} 3. g3 {[%emt 0:00:00]} d5 {[%emt 0:00:18]} 4. Bg2 {[%emt 0:00:00]} b5 {[%emt 0:00:14]} 5. O-O {[%emt 0:00:03]} Bb7 {[%emt 0:00:42]} 6. c3 {[%emt 0:00:10] A46: 1 d4 Nf6 2 Nf3 e6: Torre, London and Colle Systems} Nbd7 {[%emt 0:00:54]} 7. Bg5 {[%emt 0:00:19]} (7. a4 b4 8. a5 Rb8 9. Bf4 Ba6 10. Qc2 Be7 11. cxb4 Rxb4 12. Nc3 O-O 13. Na2 Rb7 14. Rfc1 {½-½ (14) Banusz,T (2616)-Nabaty,T (2640) Zalakaros 2017}) 7... h6 {[%emt 0:04:10]} 8. Bxf6 {[%emt 0:00:14]} Qxf6 $146 {[%emt 0:03:27]} ({Predecessor:} 8... Nxf6 9. Qd3 a6 10. b4 Nd7 11. a4 bxa4 12. Rxa4 c6 13. Ra5 {½-½ (46) Hladecek,M (2416)-Bucek,J (2412) ICCF email 2010}) 9. a4 {[%emt 0:13:05]} c6 {[%emt 0:07:32]} 10. Qd3 {[%emt 0:05:31]} a6 {[%emt 0:08:13]} 11. Nbd2 {[%emt 0:00:17]} Be7 {[%emt 0:15:11]} 12. e4 {[%emt 0:04:25]} Qg6 {[%emt 0:01:13]} 13. Qe2 {[%emt 0:01:02]} b4 {[%emt 0:05:24]} 14. a5 {[%emt 0:12:54]} O-O {[%emt 0:01:02]} 15. Rfc1 {[%emt 0:00:38]} Rac8 {[%emt 0:06:55]} 16. Ne1 {[%emt 0:05:40]} Rfe8 {[%emt 0:01:46]} 17. Nd3 {[%emt 0:01:55]} c5 {[%emt 0:05:36]} 18. cxb4 {[%emt 0:09:11]} cxd4 {[%emt 0:18:15]} 19. exd5 {[%emt 0:04:53]} exd5 {[%emt 0:02:08]} 20. Rxc8 {[%emt 0:01:20]} Bxc8 {[%emt 0:00:55]} 21. Nf4 {[%emt 0:01:42]} Qd6 {[%emt 0:04:23]} 22. Nxd5 {[%emt 0:01:34]} Nf6 {[%emt 0:00:27]} 23. Nc4 {[%emt 0:09:46]} Qd8 {[%emt 0:00:32]} 24. Nxe7+ {[%emt 0:02:31]} Rxe7 {[%emt 0:01:34]} 25. Qd3 {[%emt 0:00:05]} Bg4 {[%emt 0:01:00]} 26. Ne3 {[%emt 0:04:19]} Qd6 {[%emt 0:03:24]} 27. Rc1 {[%emt 0:04:04]} g6 {[%emt 0:01:33]} 28. Rc4 {[%emt 0:11:19]} Rd7 {[%emt 0:00:30]} 29. Rc6 {[%emt 0:04:39]} Qe7 {[%emt 0:03:12]} 30. Nxg4 {[%emt 0:00:49]} Nxg4 {[%emt 0:00:35]} 31. Bh3 {[%emt 0:01:14]} Ne5 {[%emt 0:00:54]} 32. Rc8+ {[%emt 0:00:02]} Kg7 {[%emt 0:01:12]} 33. Qd1 {[%emt 0:00:32]} Rd6 {[%emt 0:01:48]} 34. Bg2 {[%emt 0:00:10]} (34. f4 $11 Nc6 35. Qd2) 34... h5 {[%emt 0:00:39]} 35. h3 {[%emt 0:00:06]} d3 {[%emt 0:00:20]} 36. Qd2 {[%emt 0:00:47]} Qf6 {[%emt 0:00:40]} 37. f4 {[%emt 0:00:57]} Nd7 {[%emt 0:00:10]} 38. Kh2 {[%emt 0:01:20]} h4 {[%emt 0:00:44]} 39. g4 {[%emt 0:00:18]} Rd4 {[%emt 0:00:42]} 40. Rc6 {[%emt 0:00:00]} Qe7 {[%emt 0:00:27]} 41. Qc3 {[%emt 0:12:09]} Qxb4 {[%emt 0:01:07]} 42. Qxb4 {[%emt 0:00:11]} Rxb4 {[%emt 0:00:05]} 43. Rd6 {[%emt 0:00:03]} Nc5 {[%emt 0:00:54]} 44. Rd5 {[%emt 0:00:50] [#]} Ne6 $1 {[%emt 0:04:01]} 45. Rxd3 {[%emt 0:00:06]} Rxb2 {[%emt 0:08:34]} 46. Rf3 {[%emt 0:00:05] [#]} Ra2 $1 {[%emt 0:00:51]} 47. f5 {[%emt 0:04:40]} Nc5 {[%emt 0:01:59]} 48. fxg6 {[%emt 0:02:33]} fxg6 {[%emt 0:00:24]} 49. Kg1 {[%emt 0:07:58]} Rxa5 {[%emt 0:00:28]} 50. Rf1 {[%emt 0:01:55]} Ne6 {[%emt 0:00:47]} 51. Rd1 {[%emt 0:00:30]} Nf4 {[%emt 0:02:15]} 52. Bf1 {[%emt 0:00:34]} Ra3 {[%emt 0:00:30]} 53. Kh2 {[%emt 0:02:08]} Ra2+ {[%emt 0:03:43]} 54. Kg1 {[%emt 0:00:38]} g5 {[%emt 0:02:13]} 55. Rd6 {[%emt 0:00:39]} a5 {[%emt 0:00:26]} 56. Ra6 {[%emt 0:00:41]} a4 $19 {[%emt 0:00:58]} 57. Bc4 {[%emt 0:00:04]} Nxh3+ {[%emt 0:00:43]} 58. Kf1 {[%emt 0:00:03]} Ra1+ {[%emt 0:05:57]} 59. Ke2 {[%emt 0:00:03]} Nf4+ {[%emt 0:00:06]} 60. Ke3 {[%emt 0:00:14]} h3 {[%emt 0:00:53]} 61. Ra7+ {[%emt 0:01:05]} Kf6 {[%emt 0:00:15]} 62. Rh7 {[%emt 0:00:10]} a3 {[%emt 0:00:39]} 63. Kd4 0-1

[Event "ROU-ch Women 2018"]
[Site "Olanesti"]
[Date "2018.05.20"]
[Round "7"]
[White "Sgircea, Silvia-Raluca"]
[Black "Dragomirescu, Angela"]
[Result "1/2-1/2"]
[ECO "A22"]
[WhiteElo "2198"]
[BlackElo "2272"]
[Annotator "NA"]
[PlyCount "87"]
[EventDate "2018.??.??"]
[EventType "swiss"]
[EventCountry "ROU"]
[SourceTitle "playchess.com"]
[Source "ChessBase"]
[SourceQuality "1"]
[TimeControl "40/5400+30:1800+30"]

1. c4 {[%emt 0:00:00]} e5 {[%emt 0:02:12]} 2. Nc3 {[%emt 0:00:00]} Bb4 {[%emt 0:03:34]} 3. g3 {[%emt 0:01:13]} Nf6 {[%emt 0:00:42]} 4. Bg2 {[%emt 0:00:20]} O-O {[%emt 0:02:50]} 5. Nf3 {[%emt 0:01:38]} Re8 {[%emt 0:04:29]} 6. O-O {[%emt 0:01:37]} c6 {[%emt 0:06:11]} 7. d3 {[%emt 0:22:36]} d5 {[%emt 0:19:27] A22: English Opening: 1...e5 2 Nc3 Nf6} (7... h6 8. Bd2 Bf8 9. e4 d5 10. exd5 cxd5 11. Nxd5 Nxd5 12. cxd5 Qxd5 13. Bc3 Qd6 14. d4 exd4 15. Nxd4 {1-0 (31) Laznicka,V (2657)-Sethuraman,S (2623) Grosseto Prugna 2015}) 8. Qb3 $146 {[%emt 0:18:36]} ({Predecessor:} 8. cxd5 cxd5 9. Bg5 Bxc3 10. bxc3 h6 11. Bxf6 Qxf6 12. Qb3 Rd8 13. Nd2 Qe6 14. c4 dxc4 15. Nxc4 Nc6 16. Qb2 Re8 17. Rac1 Bd7 18. Qxb7 {0-1 (42) Bitalzadeh,A (2363)-Weidemann,C (2297) Germany 2015}) 8... Bf8 {[%emt 0:04:36]} 9. cxd5 {[%emt 0:03:19]} Nxd5 {[%emt 0:02:54]} 10. Bd2 {[%emt 0:04:34]} Na6 {[%emt 0:01:02]} 11. a3 {[%emt 0:05:19]} Nc5 {[%emt 0:17:01]} 12. Qc2 {[%emt 0:01:08]} Ne6 {[%emt 0:06:39]} 13. b4 {[%emt 0:05:18]} Nd4 {[%emt 0:05:15]} 14. Nxd4 {[%emt 0:06:49]} Nxc3 {[%emt 0:00:05]} 15. Bxc3 {[%emt 0:00:05]} exd4 {[%emt 0:00:04]} 16. Bb2 {[%emt 0:00:05]} a5 {[%emt 0:01:34]} 17. Qc4 {[%emt 0:06:59]} Rxe2 {[%emt 0:01:08]} 18. Bxd4 {[%emt 0:00:11]} Be6 {[%emt 0:01:57]} 19. Qc3 {[%emt 0:00:26]} Bd5 {[%emt 0:05:05]} 20. Be3 {[%emt 0:06:29]} Bxg2 {[%emt 0:00:07]} 21. Kxg2 {[%emt 0:00:02]} Qd5+ {[%emt 0:01:12]} 22. Kg1 {[%emt 0:00:01]} Re8 {[%emt 0:04:54]} 23. Bb6 {[%emt 0:03:18]} h5 {[%emt 0:00:30]} 24. bxa5 {[%emt 0:01:45]} h4 {[%emt 0:00:09]} 25. Qc4 {[%emt 0:00:05]} hxg3 {[%emt 0:02:34]} 26. Qxd5 {[%emt 0:01:16]} gxh2+ {[%emt 0:00:05]} 27. Kxh2 {[%emt 0:00:03]} cxd5 {[%emt 0:00:04]} 28. Kg2 {[%emt 0:01:34]} Bd6 {[%emt 0:01:27]} 29. Rfc1 {[%emt 0:01:27]} Rd2 {[%emt 0:01:12]} 30. Bc7 {[%emt 0:01:51]} Bxc7 {[%emt 0:01:18]} 31. Rxc7 {[%emt 0:00:01]} Ree2 {[%emt 0:01:14]} 32. Rxb7 {[%emt 0:02:37]} Rxf2+ {[%emt 0:00:04]} 33. Kg3 {[%emt 0:00:08]} Rfe2 {[%emt 0:01:29]} 34. Rb3 {[%emt 0:02:25]} Re3+ {[%emt 0:01:10]} 35. Kf4 {[%emt 0:00:01]} d4 {[%emt 0:02:28]} 36. Rb8+ {[%emt 0:01:11]} Kh7 {[%emt 0:00:02]} 37. Rh1+ {[%emt 0:00:09]} Kg6 {[%emt 0:00:01]} 38. Rg1+ {[%emt 0:00:33]} Kf6 {[%emt 0:01:31]} 39. Rb6+ {[%emt 0:00:11]} Re6 {[%emt 0:01:06]} 40. Rxe6+ {[%emt 0:00:00]} fxe6 {[%emt 0:00:16]} 41. Ke4 {[%emt 0:05:04]} Ra2 {[%emt 0:01:14]} 42. Rf1+ {[%emt 0:02:43]} Ke7 {[%emt 0:00:12]} 43. Rg1 {[%emt 0:00:07]} Kf6 {[%emt 0:04:55]} 44. Rf1+ {[%emt 0:00:11] Ke5+} 1/2-1/2

[Event "ROU-ch Women 2018"]
[Site "Olanesti"]
[Date "2018.05.20"]
[Round "7"]
[White "Cosman, Andreea-Marioara"]
[Black "Ciocan, Maria-Alexandra"]
[Result "1/2-1/2"]
[ECO "A81"]
[WhiteElo "2130"]
[BlackElo "2021"]
[Annotator "NA"]
[PlyCount "53"]
[EventDate "2018.??.??"]
[EventType "swiss"]
[EventCountry "ROU"]
[SourceTitle "playchess.com"]
[Source "ChessBase"]
[SourceQuality "1"]
[TimeControl "40/5400+30:1800+30"]

1. d4 {[%emt 0:00:00]} f5 {[%emt 0:02:29]} 2. g3 {[%emt 0:00:00]} g6 {[%emt 0:00:06]} 3. Bg2 {[%emt 0:00:00]} Nf6 {[%emt 0:00:06]} 4. Nf3 {[%emt 0:00:00]} Bg7 {[%emt 0:00:05]} 5. O-O {[%emt 0:00:59]} O-O {[%emt 0:00:04]} 6. c4 {[%emt 0:00:04]} d6 {[%emt 0:00:04]} 7. Nc3 {[%emt 0:00:05]} Qe8 {[%emt 0:00:07]} 8. Re1 {[%emt 0:01:36]} e5 {[%emt 0:06:36]} 9. dxe5 {[%emt 0:02:22]} dxe5 {[%emt 0:00:06]} 10. e4 {[%emt 0:00:04]} Nc6 {[%emt 0:00:54]} 11. Be3 {[%emt 0:26:51]} h6 $14 {[%emt 0:13:10]} (11... f4 $1 $11 12. gxf4 Bg4) 12. Nd5 {[%emt 0:18:09]} Qf7 {[%emt 0:04:17]} 13. Bc5 {[%emt 0:04:10]} Re8 {[%emt 0:01:50]} 14. Nxf6+ {[%emt 0:08:19]} Qxf6 {[%emt 0:03:37]} 15. b4 {[%emt 0:04:35]} Be6 {[%emt 0:11:33]} 16. Rc1 {[%emt 0:08:39]} Rad8 {[%emt 0:04:01]} 17. Qe2 {[%emt 0:06:43]} b6 {[%emt 0:04:17]} 18. b5 {[%emt 0:04:40]} bxc5 {[%emt 0:09:01]} 19. bxc6 {[%emt 0:00:08]} f4 {[%emt 0:01:09]} 20. gxf4 {[%emt 0:02:15]} Qxf4 {[%emt 0:01:11]} 21. Qe3 {[%emt 0:02:10]} Qxe3 {[%emt 0:06:35]} 22. Rxe3 {[%emt 0:00:05]} Rd6 {[%emt 0:00:12]} 23. Ra3 {[%emt 0:01:02]} Ra8 {[%emt 0:00:54]} 24. Ra5 {[%emt 0:02:25]} Rxc6 {[%emt 0:00:14]} 25. Ne1 {[%emt 0:00:05]} Rd8 26. Rxa7 Rd4 27. Bf1 1/2-1/2

[Event "ROU-ch Women 2018"]
[Site "Olanesti"]
[Date "2018.05.20"]
[Round "7"]
[White "Lehaci, Miruna-Daria"]
[Black "Ciolacu, Alessia-Mihaela"]
[Result "0-1"]
[ECO "C65"]
[WhiteElo "1905"]
[BlackElo "1843"]
[Annotator "NA"]
[PlyCount "42"]
[EventDate "2018.??.??"]
[EventType "swiss"]
[EventCountry "ROU"]
[SourceTitle "playchess.com"]
[Source "ChessBase"]
[SourceQuality "1"]
[TimeControl "40/5400+30:1800+30"]

1. e4 {[%emt 0:00:00]} e5 {[%emt 0:00:13]} 2. Nf3 {[%emt 0:00:00]} Nc6 {[%emt 0:00:17]} 3. Bb5 {[%emt 0:00:00]} Nf6 {[%emt 0:00:13]} 4. d3 {[%emt 0:00:00]} Bc5 {[%emt 0:00:28]} 5. Nc3 {[%emt 0:01:00]} O-O {[%emt 0:15:50]} 6. O-O {[%emt 0:00:48]} Re8 {[%emt 0:00:34]} 7. Bg5 {[%emt 0:05:02]} Nd4 {[%emt 0:09:53]} 8. Nxd4 {[%emt 0:07:20]} Bxd4 {[%emt 0:00:34]} 9. Nd5 {[%emt 0:04:28]} c6 {[%emt 0:04:29]} 10. Nxf6+ {[%emt 0:00:07]} gxf6 {[%emt 0:00:07]} 11. Bh6 {[%emt 0:00:04]} Kh8 {[%emt 0:03:09]} 12. Ba4 {[%emt 0:03:24]} Rg8 {[%emt 0:14:56]} 13. c3 {[%emt 0:10:50]} Bb6 {[%emt 0:04:01]} 14. Qh5 {[%emt 0:13:11]} d5 {[%emt 0:06:18]} 15. Bd1 Be6 {[%emt 0:02:06]} 16. Kh1 {[%emt 0:09:33]} Rg6 {[%emt 0:02:11]} 17. f4 {[%emt 0:10:22]} Be3 {[%emt 0:01:59]} 18. Qh4 {[%emt 0:11:58]} dxe4 {[%emt 0:02:59]} 19. dxe4 {[%emt 0:17:15]} Bc4 {[%emt 0:02:22]} 20. Rf3 {[%emt 0:00:31]} Qd2 {[%emt 0:00:55]} 21. Rxe3 {[%emt 0:04:01]} Qxg2# {[%emt 0:00:11]} 0-1